[Event "Fagernes Open 2019"]
[Site "Fagernes"]
[Date "2019.04.18"]
[Round "4"]
[White "Hestvik, Elias"]
[Black "Lobersli, Henrik Oie"]
[Result "1/2-1/2"]
[ECO "C48"]
[WhiteElo "1746"]
[BlackElo "2102"]
[Annotator "NA"]
[PlyCount "81"]
[EventDate "2019.04.14"]
[EventType "swiss"]
[EventCountry "NOR"]
[SourceTitle "playchess.com"]
[Source "ChessBase"]
[SourceQuality "1"]
[TimeControl "40/7200:3600"]

1. e4 {[%emt 0:01:32]} e5 {[%emt 0:00:10]} 2. Nf3 {[%emt 0:01:40]} Nc6 {[%emt 0:00:15]} 3. Nc3 {[%emt 0:01:38]} Nf6 {[%emt 0:00:24]} 4. Bb5 {[%emt 0:00:07]} Nd4 {[%emt 0:00:33]} 5. Nxd4 {[%emt 0:01:50]} exd4 {[%emt 0:00:11]} 6. e5 {[%emt 0:00:25]} dxc3 {[%emt 0:00:36]} 7. exf6 {[%emt 0:00:11]} Qxf6 {[%emt 0:00:08]} 8. dxc3 {[%emt 0:00:16]} Qe5+ {[%emt 0:00:21]} 9. Qe2 {[%emt 0:05:15]} Qxe2+ {[%emt 0:02:10]} 10. Kxe2 {[%emt 0:02:26]} Bc5 {[%emt 0:01:15]} 11. Be3 {[%emt 0:01:44]} Bxe3 {[%emt 0:07:04]} 12. Kxe3 {[%emt 0:01:04]} O-O {[%emt 0:00:13]} 13. Rhe1 {[%emt 0:01:09]} c6 {[%emt 0:00:32]} 14. Bd3 {[%emt 0:00:27]} d5 {[%emt 0:00:23]} 15. c4 {[%emt 0:03:18]} Be6 {[%emt 0:03:53]} 16. cxd5 {[%emt 0:02:54]} Bxd5 {[%emt 0:00:06]} 17. Be4 {[%emt 0:07:44]} Rae8 {[%emt 0:08:12]} 18. Kd3 {[%emt 0:07:19]} Be6 {[%emt 0:00:46]} 19. Kc3 {[%emt 0:04:19]} f5 {[%emt 0:02:18]} 20. Bd3 {[%emt 0:01:49]} Kf7 {[%emt 0:01:59]} 21. Re5 {[%emt 0:08:49]} Kf6 {[%emt 0:02:41]} 22. Rae1 {[%emt 0:00:47]} Bd7 {[%emt 0:01:33]} 23. Rxe8 {[%emt 0:05:15]} Rxe8 {[%emt 0:00:10]} 24. Rxe8 {[%emt 0:00:15]} Bxe8 {[%emt 0:00:05]} 25. f4 {[%emt 0:00:34]} Ke6 {[%emt 0:02:53]} 26. Kd4 {[%emt 0:01:48]} Bd7 {[%emt 0:08:46]} 27. c4 {[%emt 0:06:02]} b6 {[%emt 0:00:40]} 28. b4 {[%emt 0:00:53]} Be8 {[%emt 0:00:48]} 29. c5 {[%emt 0:00:42]} b5 {[%emt 0:00:32]} 30. Bc2 {[%emt 0:02:53]} Kf6 {[%emt 0:01:10]} 31. a4 {[%emt 0:01:37]} a6 {[%emt 0:00:19]} 32. Bd1 {[%emt 0:02:00]} Bd7 {[%emt 0:01:18]} 33. Bc2 {[%emt 0:00:41]} Be8 {[%emt 0:00:47]} 34. axb5 {[%emt 0:01:20]} axb5 {[%emt 0:00:08]} 35. Bd1 {[%emt 0:02:10]} Bd7 {[%emt 0:00:38]} 36. g3 {[%emt 0:01:31]} Be8 {[%emt 0:01:02]} 37. h3 {[%emt 0:01:00]} h5 {[%emt 0:02:59]} 38. g4 {[%emt 0:02:28]} hxg4 {[%emt 0:01:21]} 39. hxg4 {[%emt 0:00:03]} fxg4 {[%emt 0:00:33]} 40. Bxg4 {[%emt 0:00:13]} Bf7 {[%emt 0:01:08]} 41. Bf3 {[%emt 1:03:58]} 1/2-1/2

[Event "Fagernes Open 2019"]
[Site "Fagernes"]
[Date "2019.04.17"]
[Round "5.27"]
[White "Akdag, Omer Amir"]
[Black "Lundberg, Alf W."]
[Result "0-1"]
[ECO "B72"]
[WhiteElo "1901"]
[BlackElo "1932"]
[Annotator "NA RC"]
[PlyCount "75"]
[EventDate "2019.04.14"]
[EventType "swiss"]
[EventCountry "NOR"]
[SourceTitle "playchess.com"]
[Source "ChessBase"]
[SourceQuality "1"]
[TimeControl "40/7200:3600"]

1. e4 {[%emt 0:01:07]} c5 {[%emt 0:00:20]} 2. Nf3 {[%emt 0:00:05]} d6 {[%emt 0:00:06]} 3. d4 {[%emt 0:00:11]} cxd4 {[%emt 0:00:05]} 4. Nxd4 {[%emt 0:00:03]} Nf6 {[%emt 0:00:06]} 5. Nc3 {[%emt 0:00:04]} g6 {[%emt 0:00:09]} 6. Be3 {[%emt 0:00:19]} Bd7 {[%emt 0:00:54]} 7. f3 {[%emt 0:00:37]} Nc6 {[%emt 0:00:12]} 8. Qd2 {[%emt 0:01:34]} a6 {[%emt 0:01:28]} 9. g4 {[%emt 0:22:02]} e6 {[%emt 0:03:56]} 10. O-O-O {[%emt 0:02:57]} b5 {[%emt 0:02:46]} 11. h4 {[%emt 0:03:44]} Qc7 {[%emt 0:06:03]} 12. h5 {[%emt 0:04:11]} Na5 {[%emt 0:17:49]} 13. hxg6 {[%emt 0:06:11]} fxg6 {[%emt 0:00:39]} 14. Bg5 {[%emt 0:22:39]} Be7 {[%emt 0:10:18]} 15. f4 {[%emt 0:08:03]} b4 {[%emt 0:04:05]} 16. Nb1 {[%emt 0:03:23]} Nxe4 {[%emt 0:03:47]} 17. Qg2 {[%emt 0:01:30]} d5 {[%emt 0:07:54]} 18. Bd3 {[%emt 0:05:09]} Nxg5 {[%emt 0:05:14]} 19. fxg5 {[%emt 0:00:38]} Bxg5+ {[%emt 0:05:58]} 20. Nd2 {[%emt 0:00:20]} Nc4 {[%emt 0:04:10]} 21. N4f3 {[%emt 0:05:04]} Bf4 {[%emt 0:05:25]} 22. Qh3 {[%emt 0:04:56]} O-O-O {[%emt 0:00:44]} 23. Kb1 {[%emt 0:01:30]} Ne3 {[%emt 0:06:01]} 24. Rc1 {[%emt 0:03:06]} Nc4 {[%emt 0:04:43]} 25. Rhd1 {[%emt 0:06:00]} Bb5 {[%emt 0:04:41]} 26. Ka1 {[%emt 0:02:34]} e5 {[%emt 0:01:18]} 27. c3 {[%emt 0:01:00]} b3 {[%emt 0:05:15]} 28. axb3 {[%emt 0:01:17]} Qa5+ {[%emt 0:00:33]} 29. Kb1 {[%emt 0:00:00]} Ne3 {[%emt 0:00:19]} 30. c4 {[%emt 0:01:05]} dxc4 {[%emt 0:03:17]} 31. Bxc4 {[%emt 0:01:46]} Kb8 {[%emt 0:06:04]} 32. Rg1 {[%emt 0:03:36]} Bc6 {[%emt 0:01:11]} 33. Rc3 {[%emt 0:00:20]} Nxc4 {[%emt 0:00:53]} 34. Nxc4 {[%emt 0:01:22]} Be4+ {[%emt 0:00:01]} 35. Rc2 {[%emt 0:00:01]} Bxc2+ {[%emt 0:01:04]} 36. Kxc2 {[%emt 0:00:01]} Qd5 {[%emt 0:00:20]} 37. Ne1 {[%emt 0:01:35]} Qd1+ 38. Kc3 0-1

[Event "Fagernes Open 2019"]
[Site "Fagernes"]
[Date "2019.04.17"]
[Round "5.28"]
[White "Melaa, Sondre"]
[Black "Rasmussen, Jonas H"]
[Result "0-1"]
[ECO "C77"]
[WhiteElo "1991"]
[BlackElo "1993"]
[Annotator "NA RC"]
[PlyCount "84"]
[EventDate "2019.04.14"]
[EventType "swiss"]
[EventCountry "NOR"]
[SourceTitle "playchess.com"]
[Source "ChessBase"]
[SourceQuality "1"]
[TimeControl "40/7200:3600"]

1. e4 {[%emt 0:00:12]} e5 {[%emt 0:00:07]} 2. Nf3 {[%emt 0:00:07]} Nc6 {[%emt 0:00:05]} 3. Bb5 {[%emt 0:00:08]} a6 {[%emt 0:00:05]} 4. Ba4 {[%emt 0:00:05]} b5 {[%emt 0:00:05]} 5. Bb3 {[%emt 0:00:07]} Bb7 {[%emt 0:00:03]} 6. d3 {[%emt 0:00:29]} Nf6 {[%emt 0:07:52]} 7. Nc3 {[%emt 0:00:44]} h6 {[%emt 0:01:08]} 8. Nd5 {[%emt 0:03:12]} Nxd5 {[%emt 0:10:58]} 9. Bxd5 {[%emt 0:13:51]} Qf6 {[%emt 0:05:55]} 10. c3 {[%emt 0:08:30]} Bc5 {[%emt 0:08:03]} 11. d4 {[%emt 0:08:08]} exd4 {[%emt 0:00:51]} 12. cxd4 {[%emt 0:00:31]} Bb4+ {[%emt 0:05:08]} 13. Bd2 {[%emt 0:01:36]} Bxd2+ {[%emt 0:00:17]} 14. Qxd2 {[%emt 0:00:42]} O-O {[%emt 0:08:19]} 15. O-O {[%emt 0:01:43]} Rab8 {[%emt 0:01:28]} 16. Bxc6 {[%emt 0:14:48]} Bxc6 {[%emt 0:01:44]} 17. Ne5 {[%emt 0:07:48]} Rfd8 {[%emt 0:06:15]} 18. f3 {[%emt 0:01:46]} Bb7 {[%emt 0:02:42]} 19. Rac1 {[%emt 0:04:59]} Rbc8 {[%emt 0:10:34]} 20. b4 {[%emt 0:05:34]} Qe6 {[%emt 0:06:07]} 21. Nd3 {[%emt 0:02:41]} d6 {[%emt 0:01:32]} 22. Qb2 {[%emt 0:02:46]} Re8 {[%emt 0:14:37]} 23. Rfe1 {[%emt 0:04:07]} Qf6 {[%emt 0:03:13]} 24. Rc2 {[%emt 0:01:10]} Re7 {[%emt 0:02:11]} 25. Rec1 {[%emt 0:00:55]} c6 {[%emt 0:00:48]} 26. Qc3 {[%emt 0:06:36]} Rce8 {[%emt 0:01:21]} 27. Nf2 {[%emt 0:01:01]} Qg6 {[%emt 0:01:30]} 28. Qd3 {[%emt 0:01:13]} Kh8 {[%emt 0:01:25]} 29. Rc3 {[%emt 0:01:31]} f5 {[%emt 0:00:41]} 30. h3 {[%emt 0:04:31]} fxe4 {[%emt 0:00:49]} 31. Nxe4 {[%emt 0:01:08]} d5 {[%emt 0:02:58]} 32. Nc5 {[%emt 0:01:08]} Qg3 {[%emt 0:00:48]} 33. Qf1 {[%emt 0:05:21]} Re1 {[%emt 0:01:35]} 34. Rxe1 {[%emt 0:00:05]} Rxe1 {[%emt 0:00:04]} 35. Nxb7 {[%emt 0:00:09]} Rxf1+ {[%emt 0:00:30]} 36. Kxf1 {[%emt 0:00:05]} Qg6 {[%emt 0:00:30]} 37. Re3 {[%emt 0:03:14]} Qb1+ {[%emt 0:00:31]} 38. Kf2 {[%emt 0:00:05]} Qxa2+ {[%emt 0:00:27]} 39. Kg3 {[%emt 0:00:10]} Qd2 {[%emt 0:00:53]} 40. Re8+ {[%emt 0:00:15]} Kh7 {[%emt 0:00:04]} 41. h4 {[%emt 1:00:12]} Qxd4 {[%emt 1:00:50]} 42. h5 {[%emt 0:00:12]} Qf6 {[%emt 0:00:25]} 0-1

[Event "Fagernes Open 2019"]
[Site "Fagernes"]
[Date "2019.04.17"]
[Round "5.29"]
[White "Eliseev, Sergey"]
[Black "Loberg, Jo Kristian"]
[Result "0-1"]
[ECO "B50"]
[WhiteElo "1867"]
[BlackElo "2045"]
[Annotator "NA RC"]
[PlyCount "86"]
[EventDate "2019.04.14"]
[EventType "swiss"]
[EventCountry "NOR"]
[SourceTitle "playchess.com"]
[Source "ChessBase"]
[SourceQuality "1"]
[TimeControl "40/7200:3600"]

1. e4 {[%emt 0:00:02]} c5 {[%emt 0:00:08]} 2. Nf3 {[%emt 0:00:06]} d6 {[%emt 0:00:21]} 3. g3 {[%emt 0:00:15]} Nc6 {[%emt 0:01:09]} 4. Bg2 {[%emt 0:00:08]} g6 {[%emt 0:00:53]} 5. O-O {[%emt 0:00:10]} Bg7 {[%emt 0:01:41]} 6. c3 {[%emt 0:00:18]} e5 {[%emt 0:01:45]} 7. Re1 {[%emt 0:00:36]} Nge7 {[%emt 0:05:12]} 8. a3 {[%emt 0:01:42]} a6 {[%emt 0:09:17]} 9. d3 {[%emt 0:01:46]} O-O {[%emt 0:00:41]} 10. Be3 {[%emt 0:01:08]} h6 {[%emt 0:13:19]} 11. b4 {[%emt 0:07:19]} b6 {[%emt 0:09:47]} 12. Nh4 {[%emt 0:18:55]} Rb8 {[%emt 0:10:50]} 13. Ra2 {[%emt 0:14:59]} Qc7 {[%emt 0:08:01]} 14. f4 {[%emt 0:14:34]} f5 {[%emt 0:04:12]} 15. exf5 {[%emt 0:03:18]} exf4 {[%emt 0:02:43]} 16. Bxf4 {[%emt 0:01:21]} g5 {[%emt 0:06:45]} 17. Bxg5 {[%emt 0:10:26]} hxg5 {[%emt 0:00:21]} 18. Ng6 {[%emt 0:14:34]} Bxf5 {[%emt 0:14:53]} 19. Nxf8 {[%emt 0:02:07]} Rxf8 {[%emt 0:00:13]} 20. g4 {[%emt 0:05:32]} Bg6 {[%emt 0:08:33]} 21. Re3 {[%emt 0:02:12]} Ne5 {[%emt 0:01:02]} 22. Be4 {[%emt 0:01:17]} Rf4 {[%emt 0:01:38]} 23. Rg2 {[%emt 0:01:25]} Qc8 {[%emt 0:01:00]} 24. Bxg6 {[%emt 0:02:28]} N7xg6 {[%emt 0:00:12]} 25. Qb3+ {[%emt 0:05:18]} Kh8 {[%emt 0:01:25]} 26. Qd5 {[%emt 0:02:24]} Rxg4 {[%emt 0:01:01]} 27. Rh3+ {[%emt 0:00:30]} Nh4 {[%emt 0:00:20]} 28. Rgg3 {[%emt 0:00:33]} Qf5 {[%emt 0:01:08]} 29. Nd2 {[%emt 0:00:41]} Qf4 {[%emt 0:02:15]} 30. Qa8+ {[%emt 0:00:15]} Bf8 {[%emt 0:01:03]} 31. Kh1 {[%emt 0:00:39]} Kg7 {[%emt 0:00:53]} 32. Rxg4 {[%emt 0:00:30]} Nxg4 {[%emt 0:00:31]} 33. Qb7+ {[%emt 0:00:18]} Kh6 {[%emt 0:01:16]} 34. Qd7 {[%emt 0:00:41]} Nf2+ {[%emt 0:00:59]} 35. Kg1 {[%emt 0:00:02]} Nxh3+ {[%emt 0:00:17]} 36. Qxh3 {[%emt 0:00:05]} Qxd2 {[%emt 0:00:14]} 37. Qe6+ {[%emt 0:00:02]} Ng6 {[%emt 0:00:21]} 38. Qh3+ {[%emt 0:00:08]} Kg7 {[%emt 0:00:09]} 39. Qd7+ {[%emt 0:00:05]} Be7 {[%emt 0:00:06]} 40. d4 {[%emt 0:00:39]} Qe1+ {[%emt 0:00:11]} 41. Kg2 {[%emt 1:00:10]} Qd2+ {[%emt 1:00:26]} 42. Kf1 {[%emt 0:00:14]} cxd4 {[%emt 0:00:19]} 43. cxd4 {[%emt 0:00:00]} Qxd4 {[%emt 0:00:00]} 0-1

[Event "Fagernes Open 2019"]
[Site "Fagernes"]
[Date "2019.04.17"]
[Round "5.30"]
[White "Wright, Haakon"]
[Black "Mansoor, Afras"]
[Result "1-0"]
[ECO "A24"]
[WhiteElo "1849"]
[BlackElo "1965"]
[Annotator "NA RC"]
[PlyCount "91"]
[EventDate "2019.04.14"]
[EventType "swiss"]
[EventCountry "NOR"]
[SourceTitle "playchess.com"]
[Source "ChessBase"]
[SourceQuality "1"]
[TimeControl "40/7200:3600"]

1. c4 {[%emt 0:00:02]} Nf6 {[%emt 0:00:04]} 2. g3 {[%emt 0:00:06]} g6 {[%emt 0:00:04]} 3. Bg2 {[%emt 0:00:06]} Bg7 {[%emt 0:00:04]} 4. Nc3 {[%emt 0:00:12]} O-O {[%emt 0:00:06]} 5. d3 {[%emt 0:00:27]} d6 {[%emt 0:00:10]} 6. Nf3 {[%emt 0:01:12]} e5 {[%emt 0:01:22]} 7. O-O {[%emt 0:01:00]} h6 {[%emt 0:00:30]} 8. Bd2 {[%emt 0:01:18]} Be6 {[%emt 0:00:49]} 9. Rb1 {[%emt 0:04:01]} a6 {[%emt 0:01:47]} 10. b4 {[%emt 0:02:14]} c6 {[%emt 0:00:07]} 11. a4 {[%emt 0:01:32]} Nbd7 {[%emt 0:00:32]} 12. Ne1 {[%emt 0:08:06]} Nh5 {[%emt 0:06:02]} 13. b5 {[%emt 0:04:13]} axb5 {[%emt 0:00:56]} 14. axb5 {[%emt 0:00:10]} Qc7 {[%emt 0:01:17]} 15. Qc1 {[%emt 0:08:20]} Kh7 {[%emt 0:00:21]} 16. f4 {[%emt 0:02:30]} exf4 {[%emt 0:07:25]} 17. gxf4 {[%emt 0:01:36]} f5 {[%emt 0:02:22]} 18. Nc2 {[%emt 0:04:53]} Rad8 {[%emt 0:14:54]} 19. bxc6 {[%emt 0:06:10]} bxc6 {[%emt 0:01:19]} 20. Nb4 {[%emt 0:02:48]} Nb8 {[%emt 0:00:34]} 21. e3 {[%emt 0:06:46]} Nf6 {[%emt 0:04:08]} 22. Ne2 {[%emt 0:09:41]} Qd7 {[%emt 0:30:32]} 23. Nd4 {[%emt 0:05:15]} d5 {[%emt 0:04:59]} 24. cxd5 {[%emt 0:08:25]} Nxd5 {[%emt 0:04:32]} 25. Nxe6 {[%emt 0:07:40]} Qxe6 {[%emt 0:00:06]} 26. Nxd5 {[%emt 0:03:42]} cxd5 {[%emt 0:00:07]} 27. Qc5 {[%emt 0:03:11]} Rd6 {[%emt 0:09:19]} 28. Rfc1 {[%emt 0:02:32]} Nd7 {[%emt 0:01:51]} 29. Qa7 {[%emt 0:01:31]} Rf7 {[%emt 0:03:38]} 30. Rc7 {[%emt 0:02:57]} g5 {[%emt 0:15:44]} 31. Kf2 {[%emt 0:05:31]} d4 {[%emt 0:01:08]} 32. e4 {[%emt 0:03:02]} Ra6 {[%emt 0:00:02]} 33. exf5 {[%emt 0:04:03]} Qd6 {[%emt 0:00:08]} 34. Qb7 {[%emt 0:01:11]} Ra2 {[%emt 0:00:11]} 35. Ke1 {[%emt 0:01:08]} gxf4 {[%emt 0:00:52]} 36. Be4 {[%emt 0:00:40]} Bf6 {[%emt 0:00:06]} 37. Rbc1 {[%emt 0:00:31]} Re7 {[%emt 0:00:24]} 38. R1c6 {[%emt 0:00:21]} Qe5 {[%emt 0:00:37]} 39. Rxd7 {[%emt 0:00:09]} Bh4+ {[%emt 0:00:20]} 40. Ke2 {[%emt 0:00:22]} f3+ {[%emt 0:00:23]} 41. Kxf3 {[%emt 1:00:20]} Rxd2 {[%emt 1:00:07]} 42. Rxe7+ {[%emt 0:00:05]} Bxe7 {[%emt 0:00:00]} 43. f6+ {[%emt 0:00:00]} Kg8 {[%emt 0:00:00]} 44. Qb3+ {[%emt 0:00:00]} Kf8 {[%emt 0:00:00]} 45. Rc8+ {[%emt 0:00:00]} Bd8 {[%emt 0:00:00]} 46. Rxd8+ {[%emt 0:00:00]} 1-0

[Event "Fagernes Open 2019"]
[Site "Fagernes"]
[Date "2019.04.18"]
[Round "6.27"]
[White "Rasmussen, Jonas H"]
[Black "Lundberg, Alf W."]
[Result "0-1"]
[ECO "A54"]
[WhiteElo "1993"]
[BlackElo "1932"]
[Annotator "NA"]
[PlyCount "80"]
[EventDate "2019.04.14"]
[EventType "swiss"]
[EventCountry "NOR"]
[SourceTitle "playchess.com"]
[Source "ChessBase"]
[SourceQuality "1"]
[TimeControl "40/7200:3600"]

1. d4 {[%emt 0:00:01]} Nf6 {[%emt 0:00:11]} 2. Nf3 {[%emt 0:00:06]} d6 {[%emt 0:00:19]} 3. c4 {[%emt 0:00:06]} Nc6 {[%emt 0:00:12]} 4. Nc3 {[%emt 0:00:07]} e5 {[%emt 0:00:08]} 5. d5 {[%emt 0:00:05]} Ne7 {[%emt 0:00:08]} 6. e4 {[%emt 0:00:06]} Ng6 {[%emt 0:00:14]} 7. Be2 {[%emt 0:00:09]} Be7 {[%emt 0:01:04]} 8. O-O {[%emt 0:00:07]} O-O {[%emt 0:01:04]} 9. Ne1 {[%emt 0:00:35]} Ne8 {[%emt 0:00:54]} 10. Nd3 {[%emt 0:00:59]} Bg5 {[%emt 0:05:58]} 11. b4 {[%emt 0:12:13]} f5 {[%emt 0:20:53]} 12. exf5 {[%emt 0:16:40]} Bxf5 {[%emt 0:01:02]} 13. Bg4 {[%emt 0:03:15]} Bxc1 {[%emt 0:07:08]} 14. Rxc1 {[%emt 0:00:29]} Qg5 {[%emt 0:02:45]} 15. Bxf5 {[%emt 0:03:38]} Rxf5 {[%emt 0:00:47]} 16. Ne4 {[%emt 0:04:59]} Qh4 {[%emt 0:02:15]} 17. Ng3 {[%emt 0:04:25]} Rg5 {[%emt 0:03:02]} 18. c5 {[%emt 0:10:25]} Nf6 {[%emt 0:05:30]} 19. cxd6 {[%emt 0:06:58]} cxd6 {[%emt 0:00:21]} 20. Qb3 {[%emt 0:00:58]} Ng4 {[%emt 0:03:04]} 21. h3 {[%emt 0:06:38]} Nxf2 {[%emt 0:01:05]} 22. Rxf2 {[%emt 0:01:18]} Rxg3 {[%emt 0:01:18]} 23. Qc2 {[%emt 0:01:11]} h6 {[%emt 0:06:27]} 24. Kh2 {[%emt 0:02:25]} e4 {[%emt 0:03:59]} 25. Ne1 {[%emt 0:03:30]} Ne5 {[%emt 0:14:40]} 26. Kg1 {[%emt 0:18:51]} e3 {[%emt 0:11:59]} 27. Re2 {[%emt 0:03:45]} Qxh3 {[%emt 0:06:28]} 28. Qe4 {[%emt 0:01:33]} Rf8 {[%emt 0:05:14]} 29. Rec2 {[%emt 0:01:25]} e2 {[%emt 0:01:18]} 30. Rxe2 {[%emt 0:00:43]} Ng4 {[%emt 0:03:21]} 31. Nf3 {[%emt 0:00:22]} Qh5 {[%emt 0:02:46]} 32. Qe6+ {[%emt 0:07:20]} Kh7 {[%emt 0:00:01]} 33. Qe4+ {[%emt 0:00:16]} Rf5 {[%emt 0:00:35]} 34. Rc7 {[%emt 0:00:35]} Nf6 {[%emt 0:00:28]} 35. Qc2 {[%emt 0:01:41]} Qxf3 {[%emt 0:00:27]} 36. Ree7 {[%emt 0:00:34]} Qf1+ {[%emt 0:01:05]} 37. Kh2 {[%emt 0:00:04]} Rgg5 {[%emt 0:00:30]} 38. Rc4 {[%emt 0:00:59]} Ng4+ {[%emt 0:00:33]} 39. Kh3 {[%emt 0:00:16]} Qh1+ {[%emt 0:00:08]} 40. Kg3 {[%emt 0:00:06]} Qh2# {[%emt 0:00:16]} 0-1

[Event "Fagernes Open 2019"]
[Site "Fagernes"]
[Date "2019.04.18"]
[Round "6.28"]
[White "Loberg, Jo Kristian"]
[Black "Akdag, Omer Amir"]
[Result "1-0"]
[ECO "B37"]
[WhiteElo "2045"]
[BlackElo "1901"]
[Annotator "NA"]
[PlyCount "125"]
[EventDate "2019.04.14"]
[EventType "swiss"]
[EventCountry "NOR"]
[SourceTitle "playchess.com"]
[Source "ChessBase"]
[SourceQuality "1"]
[TimeControl "40/7200:3600"]

1. e4 {[%emt 0:00:04]} c5 {[%emt 0:01:49]} 2. Nf3 {[%emt 0:00:08]} g6 {[%emt 0:00:05]} 3. d4 {[%emt 0:00:43]} cxd4 {[%emt 0:00:05]} 4. Nxd4 {[%emt 0:00:06]} Bg7 {[%emt 0:00:27]} 5. c4 {[%emt 0:01:48]} Nc6 {[%emt 0:00:13]} 6. Nc2 {[%emt 0:00:36]} Nf6 {[%emt 0:00:41]} 7. Nc3 {[%emt 0:00:14]} O-O {[%emt 0:00:40]} 8. Be2 {[%emt 0:00:51]} d6 {[%emt 0:01:53]} 9. O-O {[%emt 0:00:28]} a5 {[%emt 0:03:27]} 10. Na3 {[%emt 0:03:16]} Nd7 {[%emt 0:06:42]} 11. Nab5 {[%emt 0:01:38]} Nc5 {[%emt 0:04:58]} 12. Be3 {[%emt 0:04:24]} a4 {[%emt 0:04:28]} 13. Qd2 {[%emt 0:10:15]} Qa5 {[%emt 0:14:50]} 14. Bh6 {[%emt 0:08:55]} Be6 {[%emt 0:14:41]} 15. Bxg7 {[%emt 0:03:28]} Kxg7 {[%emt 0:00:02]} 16. Rad1 {[%emt 0:12:17]} Qb4 {[%emt 0:12:42]} 17. Nc7 {[%emt 0:06:08]} Rac8 {[%emt 0:01:48]} 18. Nxe6+ {[%emt 0:03:16]} Nxe6 {[%emt 0:00:03]} 19. f4 {[%emt 0:23:50]} Ncd4 {[%emt 0:16:41]} 20. f5 {[%emt 0:03:17]} Nxe2+ {[%emt 0:00:38]} 21. Qxe2 {[%emt 0:03:03]} Nc7 {[%emt 0:06:41]} 22. f6+ {[%emt 0:13:09]} exf6 {[%emt 0:00:42]} 23. Qf3 {[%emt 0:00:16]} Qc5+ {[%emt 0:03:00]} 24. Kh1 {[%emt 0:00:35]} Qe5 {[%emt 0:01:56]} 25. Nxa4 {[%emt 0:01:02]} Ne6 {[%emt 0:01:45]} 26. Rd5 {[%emt 0:07:04]} Ng5 {[%emt 0:00:48]} 27. Rxe5 {[%emt 0:00:16]} Nxf3 {[%emt 0:00:06]} 28. Rd5 {[%emt 0:00:04]} Ng5 {[%emt 0:00:58]} 29. Nc3 {[%emt 0:00:53]} Rc6 {[%emt 0:04:41]} 30. h4 {[%emt 0:03:35]} Ne6 {[%emt 0:00:10]} 31. b3 {[%emt 0:00:01]} Re8 {[%emt 0:00:31]} 32. Nb5 {[%emt 0:01:01]} Nc7 {[%emt 0:01:17]} 33. Nxd6 {[%emt 0:00:49]} Re6 {[%emt 0:01:15]} 34. Nxb7 {[%emt 0:00:53]} Rxe4 {[%emt 0:00:28]} 35. Rd7 {[%emt 0:00:22]} Rxh4+ {[%emt 0:01:01]} 36. Kg1 {[%emt 0:00:01]} Ne6 {[%emt 0:06:28]} 37. Nd8 {[%emt 0:00:00]} Nxd8 {[%emt 0:00:09]} 38. Rxd8 {[%emt 0:00:01]} Re4 {[%emt 0:00:53]} 39. Rd2 {[%emt 0:00:01]} Re5 {[%emt 0:00:07]} 40. Rc1 {[%emt 0:00:08]} Rec5 {[%emt 0:00:06]} 41. a3 {[%emt 1:00:10]} Kf8 {[%emt 1:00:03]} 42. Rdc2 {[%emt 0:00:46]} Ke7 {[%emt 0:00:01]} 43. b4 {[%emt 0:00:00]} Re5 {[%emt 0:00:00]} 44. c5 {[%emt 0:00:00]} Kd7 {[%emt 0:00:00]} 45. b5 {[%emt 0:00:00]} Rc8 {[%emt 0:00:00]} 46. Rd2+ {[%emt 0:00:00]} Kc7 {[%emt 0:00:00]} 47. b6+ {[%emt 0:00:00]} Kc6 {[%emt 0:00:00]} 48. Rd6+ {[%emt 0:00:00]} Kb7 {[%emt 0:00:00]} 49. Rd7+ {[%emt 0:00:00]} Kc6 {[%emt 0:00:00]} 50. Rxf7 {[%emt 0:00:00]} Re3 {[%emt 0:00:00]} 51. Rxf6+ {[%emt 0:00:00]} Kb7 {[%emt 0:00:00]} 52. Rf7+ {[%emt 0:00:00]} Kc6 {[%emt 0:00:00]} 53. a4 {[%emt 0:00:00]} Ra3 {[%emt 0:00:00]} 54. Rc4 {[%emt 0:00:08]} Re8 {[%emt 0:00:00]} 55. Rc7+ {[%emt 0:00:00]} Kd5 {[%emt 0:00:00]} 56. Rc2 {[%emt 0:00:00]} Rxa4 {[%emt 0:00:00]} 57. b7 {[%emt 0:00:00]} Rb4 {[%emt 0:00:00]} 58. c6 {[%emt 0:00:00]} Kd6 {[%emt 0:00:00]} 59. Rc8 {[%emt 0:00:00]} Re1+ {[%emt 0:00:00]} 60. Kf2 {[%emt 0:00:00]} Reb1 {[%emt 0:00:00]} 61. c7 {[%emt 0:00:00]} R1b2 {[%emt 0:00:00]} 62. Rd8+ {[%emt 0:00:00]} Ke7 {[%emt 0:00:00]} 63. c8=Q {[%emt 0:00:00]} 1-0